bitfinex/quotes_SOLUSD_20230103
["timestamp","ask_amount","ask_price","bid_price","bid_amount"]
[1672782524293,56.33,13.326,13.313,30.0]
[1672782524710,56.31,13.329,13.313,30.0]
[1672782524934,50.0,13.328,13.312,99.78369183]
[1672782525148,30.0,13.326,13.312,99.78369183]
[1672782525359,56.33,13.325,13.312,99.78369183]
[1672782525577,56.33,13.325,13.313,30.0]
[1672782525765,56.32,13.327,13.313,30.0]
[1672782525975,56.32,13.327,13.314,20.0]
[1672782526189,12.81,13.34,13.316,30.0]
[1672782526190,56.31,13.331,13.316,30.0]
[1672782526614,56.3,13.333,13.316,30.0]
[1672782526825,56.3,13.333,13.318,30.0]
[1672782527035,56.29,13.334,13.318,30.0]
[1672782527682,56.29,13.334,13.32,12.74]
[1672782527899,56.29,13.334,13.321,30.0]
[1672782528725,100.0,13.331,13.323,30.0]
[1672782528936,100.0,13.331,13.324,37.41]
[1672782529152,100.0,13.331,13.325,50.0]
[1672782530288,56.25,13.345,13.327,30.0]
[1672782530515,30.0,13.345,13.33,12.91]
[1672782530743,174.4174,13.344,13.327,79.76]
[1672782530920,174.4174,13.344,13.325,100.99]
[1672782530921,30.0,13.343,13.325,100.99]
[1672782531262,30.0,13.341,13.325,100.99]
[1672782531452,56.27,13.34,13.325,50.0]
[1672782531870,56.26,13.342,13.325,50.0]
[1672782532202,30.0,13.341,13.325,50.0]
[1672782532408,56.27,13.34,13.325,50.0]
[1672782533026,69.01,13.34,13.325,50.0]
[1672782533235,69.01,13.34,13.325,20.0]
[1672782533447,30.0,13.339,13.325,20.0]
[1672782533666,56.28,13.338,13.325,20.0]
[1672782534818,30.0,13.337,13.324,110.9231]
[1672782535033,30.0,13.333,13.314,51.5]
[1672782535352,30.0,13.333,13.317,114.0133]
[1672782535353,56.3,13.332,13.317,114.0133]
[1672782535562,56.3,13.332,13.318,30.0]
[1672782535778,56.29,13.334,13.318,30.0]
[1672782536179,30.0,13.333,13.317,114.0133]
[1672782536389,56.3,13.332,13.318,30.0]
[1672782536595,56.3,13.333,13.318,30.0]
[1672782536808,56.29,13.334,13.318,30.0]
[1672782538285,100.0,13.331,13.318,30.0]
[1672782538493,56.31,13.33,13.318,30.0]
[1672782538947,56.31,13.33,13.317,114.0133]
[1672782539243,56.31,13.33,13.315,30.0]
[1672782539458,100.0,13.331,13.317,30.0]
[1672782540706,56.31,13.33,13.317,30.0]
[1672782540920,100.0,13.331,13.317,30.0]
[1672782541536,100.0,13.331,13.316,42.23]
[1672782541763,56.31,13.33,13.314,109.3006]
[1672782541974,30.0,13.328,13.309,109.3006]
[1672782542191,76.32,13.327,13.309,109.3006]
[1672782542613,56.32,13.327,13.313,11.08137784]
[1672782542845,56.31,13.33,13.314,30.0]
[1672782543561,56.31,13.33,13.315,20.0]
[1672782543769,86.31,13.33,13.315,20.0]
[1672782544294,30.0,13.329,13.315,20.0]
[1672782544500,56.32,13.328,13.309,109.3006]
[1672782544831,30.0,13.326,13.309,109.3006]
[1672782545014,56.33,13.325,13.309,109.3006]
[1672782545227,30.0,13.324,13.309,109.3006]
[1672782545438,30.0,13.322,13.309,109.3006]
[1672782545644,56.35,13.321,13.306,30.0]
[1672782545861,56.35,13.321,13.306,143.2538]
[1672782546068,30.0,13.324,13.306,113.2538]
[1672782546069,30.0,13.322,13.306,113.2538]
[1672782546290,9.32815782,13.32,13.302,31.33]
[1672782546507,30.0,13.318,13.298,141.3838]
[1672782546718,76.36,13.317,13.299,30.0]
[1672782548174,76.36,13.317,13.298,141.3838]
[1672782548504,76.36,13.317,13.298,113.2538]
[1672782548817,76.36,13.317,13.299,30.0]
[1672782549428,30.0,13.316,13.298,113.2538]
[1672782549651,56.37,13.315,13.298,151.56517784]
[1672782549873,56.37,13.316,13.299,30.0]
[1672782550488,56.37,13.316,13.299,41.08137784]
[1672782550700,56.37,13.316,13.299,30.0]
[1672782551322,56.37,13.316,13.298,140.4838]
[1672782551538,30.0,13.315,13.298,113.2538]
[1672782551749,56.38,13.314,13.298,113.2538]
[1672782551959,65.70815782,13.314,13.295,25.14]
[1672782552166,30.0,13.313,13.296,20.0]
[1672782552478,30.0,13.311,13.296,20.0]
[1672782552689,56.39,13.31,13.293,134.0434]
[1672782552915,56.39,13.31,13.294,30.0]
[1672782553125,56.39,13.31,13.295,20.0]
[1672782553339,56.38,13.313,13.296,49.4]
[1672782553990,56.38,13.313,13.297,11.08137784]
[1672782554290,56.38,13.313,13.299,30.0]
[1672782555112,113.1941,13.314,13.299,53.62]
[1672782556374,56.35,13.321,13.3,38.65]
[1672782556589,109.7846,13.322,13.302,30.0]
[1672782556815,56.35,13.321,13.303,28.41]
[1672782557024,166.1146,13.325,13.305,30.0]
[1672782557217,30.0,13.324,13.306,20.0]
[1672782557430,30.0,13.322,13.306,20.0]
[1672782557747,30.0,13.32,13.306,20.0]
[1672782557967,56.36,13.319,13.306,20.0]
[1672782558182,56.35,13.321,13.305,30.0]
[1672782558378,56.35,13.321,13.306,20.0]
[1672782558602,30.0,13.32,13.304,20.0]
[1672782558794,56.36,13.319,13.304,20.0]
[1672782559320,30.0,13.318,13.3,118.8422]
[1672782559534,30.0,13.316,13.3,118.8422]
[1672782559744,56.37,13.315,13.3,118.8422]
[1672782561647,56.37,13.316,13.302,30.0]
[1672782561849,30.0,13.322,13.303,20.53]
[1672782562180,30.0,13.32,13.301,30.0]
[1672782562387,76.36,13.319,13.301,30.0]
[1672782562705,30.0,13.318,13.3,118.8422]
[1672782562910,100.0,13.302,13.301,30.0]
[1672782563105,173.9205,13.317,13.301,30.0]
[1672782563522,56.36,13.317,13.301,41.08137784]
[1672782563744,56.34,13.323,13.303,30.0]
[1672782563955,56.34,13.323,13.304,21.43]
[1672782564176,56.34,13.323,13.306,30.0]
[1672782564394,56.34,13.323,13.307,111.7876]
[1672782566583,30.0,13.322,13.307,111.7876]
[1672782566797,56.35,13.321,13.307,111.7876]
[1672782566998,30.0,13.32,13.307,111.7876]
[1672782567214,76.36,13.319,13.307,111.7876]
[1672782567418,30.0,13.318,13.307,111.7876]
[1672782567630,76.36,13.317,13.301,30.0]
[1672782568047,76.36,13.317,13.3,121.5802]
[1672782568990,56.36,13.317,13.301,30.0]
[1672782569322,56.35,13.321,13.302,11.08137784]
[1672782569527,56.35,13.321,13.303,22.454]
[1672782569945,56.35,13.321,13.303,2.454]
[1672782570142,30.0,13.32,13.301,37.63]
[1672782570478,56.36,13.319,13.301,37.63]
[1672782570691,56.36,13.319,13.301,48.71137784]
[1672782570901,100.0,13.303,13.301,48.71137784]
[1672782571095,100.0,13.303,13.302,20.0]
[1672782571308,100.0,13.303,13.302,13.35]
[1672782571630,100.0,13.303,13.301,30.0]
[1672782572138,56.36,13.319,13.303,50.0]
[1672782572468,20.0,13.318,13.303,50.0]
[1672782572686,56.36,13.317,13.303,50.0]
[1672782573507,56.36,13.317,13.301,52.09]
[1672782573831,56.36,13.317,13.299,135.6568]
[1672782574044,56.36,13.317,13.3,30.0]
[1672782575206,56.36,13.317,13.299,115.0368]
[1672782575820,30.0,13.316,13.299,115.0368]
[1672782576029,56.37,13.315,13.299,115.0368]
[1672782577323,100.0,13.303,13.299,115.0368]
[1672782577532,100.0,13.303,13.297,10.85]
[1672782578583,100.0,13.303,13.298,11.08137784]
[1672782581120,100.0,13.303,13.299,30.0]
[1672782581421,100.0,13.303,13.299,41.08137784]
[1672782581825,56.37,13.316,13.299,80.20137784]
[1672782582042,172.4251,13.325,13.301,30.0]
[1672782582250,172.4251,13.325,13.303,30.0]
[1672782582463,172.4251,13.325,13.305,30.0]
[1672782582670,172.4251,13.325,13.306,129.1315]
[1672782582671,56.33,13.325,13.306,129.1315]
[1672782583313,30.0,13.324,13.306,129.1315]
[1672782583635,56.34,13.323,13.306,170.5115]
[1672782583844,30.0,13.322,13.306,170.5115]
[1672782584072,56.34,13.323,13.306,170.5115]
[1672782584271,56.34,13.323,13.307,30.0]
[1672782584996,30.0,13.322,13.306,129.1315]
[1672782585197,56.35,13.321,13.306,129.1315]
[1672782585822,56.34,13.324,13.307,30.0]
[1672782586243,56.33,13.325,13.307,64.42]
[1672782591103,30.0,13.324,13.307,34.42]
[1672782591306,56.34,13.323,13.307,34.42]
[1672782591714,30.0,13.322,13.307,34.42]
[1672782592046,30.0,13.32,13.306,129.1315]
[1672782592875,42.83,13.32,13.306,129.1315]
[1672782593510,56.35,13.321,13.307,30.0]
[1672782593830,56.34,13.323,13.307,53.6]
[1672782594040,56.34,13.323,13.307,23.6]
[1672782594249,30.0,13.322,13.306,129.1315]
[1672782594867,56.34,13.323,13.307,30.0]
[1672782595094,56.34,13.323,13.307,52.02]
[1672782595391,56.34,13.323,13.307,22.02]
[1672782595618,30.0,13.322,13.306,129.1315]
[1672782596441,30.0,13.32,13.306,129.1315]
[1672782596777,42.83,13.32,13.306,129.1315]
[1672782597517,30.0,13.318,13.306,129.1315]
[1672782597920,30.0,13.318,13.302,22.75]
[1672782598128,30.0,13.318,13.3,114.6063]
[1672782598129,76.36,13.317,13.3,114.6063]
[1672782598340,56.36,13.317,13.3,114.6063]
[1672782598562,119.156,13.319,13.302,30.0]
[1672782598773,119.156,13.319,13.303,11.41]
[1672782598997,175.516,13.319,13.304,20.0]
[1672782600126,175.516,13.319,13.303,20.0]
[1672782600557,119.156,13.319,13.304,25.79]
[1672782600770,30.0,13.318,13.305,20.0]
[1672782601086,30.0,13.318,13.304,28.17]
[1672782601297,175.516,13.319,13.305,20.0]
[1672782602140,175.516,13.319,13.304,20.0]
[1672782602663,217.10032059,13.319,13.304,20.0]
[1672782602856,175.516,13.319,13.304,20.0]
[1672782603069,175.516,13.319,13.303,57.07]
[1672782604661,217.10032059,13.319,13.303,57.07]
[1672782604969,119.156,13.319,13.305,30.0]
[1672782605164,119.156,13.319,13.306,65.9]
[1672782605369,119.156,13.319,13.307,30.0]
[1672782605584,56.33,13.326,13.307,30.0]
[1672782605804,30.0,13.325,13.306,174.322]
[1672782606020,56.34,13.324,13.306,174.322]
[1672782607059,56.34,13.324,13.307,30.0]
[1672782607271,56.34,13.324,13.308,46.08]
[1672782607913,56.34,13.324,13.309,30.0]
[1672782608112,56.32,13.328,13.31,80.44]
[1672782608440,128.1338,13.33,13.31,47.7]
[1672782608642,86.31,13.329,13.307,48.96]
[1672782608967,142.07076729,13.329,13.306,157.912]
[1672782609170,55.76076729,13.328,13.306,157.912]
[1672782609366,86.32,13.327,13.306,157.912]
[1672782609907,30.0,13.325,13.306,108.422]
[1672782610100,30.0,13.323,13.306,108.422]
[1672782610306,56.34,13.322,13.306,108.422]
[1672782610520,30.0,13.321,13.306,108.422]
[1672782610746,30.0,13.319,13.306,108.422]
[1672782612963,56.36,13.318,13.306,108.422]
[1672782613378,121.63642978,13.319,13.306,108.422]
[1672782613901,69.18,13.32,13.306,108.422]
[1672782614126,56.35,13.321,13.306,108.422]
[1672782614354,78.62566249,13.32,13.306,108.422]
[1672782614532,134.38642978,13.32,13.306,108.422]
[1672782615815,104.38642978,13.32,13.306,108.422]
[1672782616006,56.34,13.322,13.307,20.87]
[1672782616215,111.0127,13.324,13.308,30.0]
[1672782616544,111.0127,13.324,13.309,20.87]
[1672782617369,30.0,13.323,13.308,28.46]
[1672782617597,86.34,13.323,13.306,108.422]
[1672782618437,86.34,13.323,13.307,48.6654]
[1672782618649,12.75,13.32,13.307,48.6654]
[1672782620851,12.75,13.32,13.307,65.6954]
[1672782621063,12.75,13.32,13.308,30.0]
[1672782621268,55.08403062,13.323,13.308,30.0]
[1672782621478,55.08403062,13.323,13.308,76.7084]
[1672782623066,35.87566249,13.322,13.308,76.7084]
[1672782623264,35.87566249,13.322,13.308,46.7084]
[1672782623589,30.0,13.321,13.308,46.7084]
[1672782623794,86.35,13.321,13.308,46.7084]
[1672782624005,55.08403062,13.32,13.308,46.7084]
[1672782624850,90.95969311,13.32,13.308,46.7084]
[1672782625059,55.08403062,13.32,13.308,46.7084]
[1672782625274,158.0145,13.324,13.308,46.7084]
[1672782625494,158.0145,13.324,13.309,47.1788]
[1672782625696,56.34,13.323,13.309,47.1788]
[1672782625907,330.47566249,13.327,13.309,47.1788]
[1672782625908,56.33,13.326,13.31,13.36]
[1672782626116,35.87566249,13.327,13.311,20.0]
[1672782626333,30.0,13.323,13.312,160.1918]
[1672782626526,30.0,13.323,13.312,47.1788]
[1672782627384,86.34,13.323,13.312,47.1788]
[1672782627588,126.89566249,13.323,13.312,47.1788]
[1672782630215,48.0385,13.328,13.312,47.1788]
[1672782630435,48.0385,13.328,13.314,30.0]
[1672782630621,48.0385,13.328,13.315,32.53]
[1672782631275,30.0,13.332,13.315,146.6913]
[1672782631586,30.0,13.33,13.316,46.0421]
[1672782631802,56.31,13.329,13.316,46.0421]
[1672782632010,30.0,13.328,13.316,46.0421]
[1672782632339,66.15035203,13.328,13.307,15.97]
[1672782632633,30.0,13.326,13.307,180.5409]
[1672782632871,56.33,13.325,13.307,180.5409]
[1672782633043,174.6488,13.325,13.309,30.0]
[1672782633254,174.6488,13.325,13.308,46.0421]
[1672782633470,30.0,13.324,13.308,46.0421]
[1672782633777,174.6488,13.325,13.31,30.0]
[1672782634194,174.6488,13.325,13.309,46.0421]
[1672782636420,30.0,13.324,13.309,46.0421]
[1672782636643,56.34,13.323,13.309,46.0421]
[1672782637477,56.34,13.324,13.309,46.0421]
[1672782638321,56.34,13.324,13.31,30.0]
[1672782638531,56.31,13.329,13.311,20.0]
[1672782638744,175.7145,13.329,13.312,55.52]
[1672782638957,175.7145,13.329,13.313,20.0]
[1672782639274,56.31,13.329,13.315,30.0]
[1672782639489,56.31,13.329,13.316,20.0]
[1672782639895,127.9991,13.33,13.316,20.0]
[1672782640202,127.9991,13.33,13.316,68.5384]
[1672782640630,56.31,13.33,13.316,68.5384]
[1672782640834,56.3,13.332,13.316,68.5384]
[1672782641060,30.0,13.331,13.317,45.9974]
[1672782641377,56.31,13.33,13.317,45.9974]
[1672782642305,30.0,13.329,13.317,45.9974]
[1672782642730,36.15035203,13.328,13.317,45.9974]
[1672782642942,30.0,13.329,13.317,45.9974]
[1672782643789,56.31,13.33,13.317,45.9974]
[1672782644003,86.31,13.331,13.317,45.9974]
[1672782644532,122.46035203,13.331,13.317,45.9974]
[1672782645270,86.31,13.331,13.317,45.9974]
[1672782646636,56.31,13.331,13.317,45.9974]
[1672782646851,86.3,13.332,13.317,45.9974]
[1672782647054,30.0,13.332,13.318,47.5166]
[1672782647674,133.8755,13.333,13.318,47.5166]
[1672782647877,103.8755,13.333,13.318,47.5166]
[1672782648091,103.8755,13.333,13.319,30.0]
[1672782648307,12.83,13.33,13.3,94.13]
[1672782648633,145.94919809,13.329,13.303,30.0]
[1672782648842,347.42330646,13.329,13.305,30.0]
[1672782649043,155.10150837,13.328,13.306,54.17]
[1672782649240,30.0,13.326,13.307,47.5166]
[1672782649454,56.33,13.325,13.308,47.5166]
[1672782649681,30.0,13.324,13.308,47.5166]
[1672782649900,56.34,13.323,13.308,47.5166]
[1672782650210,56.34,13.323,13.309,155.6074]
[1672782650734,86.34,13.324,13.309,155.6074]
[1672782651166,103.8062,13.325,13.309,155.6074]
[1672782651354,103.8062,13.325,13.31,30.0]
[1672782651559,47.4762,13.325,13.311,52.12]
[1672782651782,47.4762,13.325,13.312,30.0]
[1672782651999,47.4762,13.325,13.313,20.0]
[1672782652188,138.1513,13.328,13.313,20.0]
[1672782652399,138.1513,13.328,13.314,46.8627]
[1672782652605,30.0,13.327,13.315,20.0]
[1672782652926,74.16674316,13.327,13.315,179.3526]
[1672782653135,69.4832765,13.327,13.311,56.3153]
[1672782653350,30.0,13.325,13.311,24.1953]
[1672782653564,56.34,13.324,13.311,24.1953]
[1672782653891,30.0,13.323,13.311,24.1953]
[1672782656098,56.34,13.324,13.311,24.1953]
[1672782656403,30.0,13.323,13.311,24.1953]
[1672782656622,56.34,13.322,13.311,24.1953]
[1672782656939,30.0,13.321,13.311,24.1953]
[1672782657256,30.0,13.319,13.311,24.1953]
[1672782657441,86.35,13.321,13.309,48.4933]
[1672782658072,39.4832765,13.321,13.309,48.4933]
[1672782658511,48.2243,13.324,13.309,48.4933]
[1672782658928,39.4832765,13.323,13.309,48.4933]
[1672782659141,30.0,13.322,13.309,48.4933]
[1672782660277,86.34,13.323,13.309,48.4933]
[1672782660700,121.63900983,13.323,13.309,48.4933]
[1672782661456,86.34,13.323,13.309,48.4933]
[1672782661645,12.83,13.32,13.299,33.16]
[1672782661855,30.0,13.318,13.299,158.6804]
[1672782662065,76.36,13.317,13.299,158.6804]
[1672782662288,30.0,13.316,13.299,158.6804]
[1672782662496,56.37,13.315,13.299,158.6804]
[1672782662703,30.0,13.314,13.299,158.6804]
[1672782663132,56.37,13.315,13.299,158.6804]
[1672782663347,41.56485744,13.313,13.301,30.0]
[1672782663556,48.9519,13.317,13.302,41.95]
[1672782663788,67.65359944,13.316,13.302,47.8493]
[1672782663982,86.37,13.316,13.302,47.8493]
[1672782665136,48.9519,13.317,13.303,50.0]
[1672782665557,48.9519,13.317,13.303,74.97]
[1672782665769,48.9519,13.317,13.303,44.97]
[1672782666084,48.9519,13.317,13.303,92.0986]
[1672782666295,30.0,13.315,13.301,26.29]
[1672782666505,30.0,13.315,13.3,71.6023]
[1672782666930,56.38,13.314,13.3,71.6023]
[1672782667341,56.37,13.315,13.3,71.6023]
[1672782667761,56.37,13.315,13.301,30.0]
[1672782667976,30.0,13.314,13.3,71.6023]
[1672782668403,67.65359944,13.314,13.3,71.6023]
[1672782669776,30.0,13.314,13.3,71.6023]
[1672782670174,56.37,13.315,13.3,71.6023]
[1672782670383,135.0587,13.316,13.3,71.6023]
[1672782670806,172.71229944,13.316,13.3,71.6023]
[1672782672086,135.0587,13.316,13.3,71.6023]
[1672782672715,30.0,13.314,13.3,71.6023]
[1672782672912,56.38,13.313,13.3,71.6023]
[1672782673343,12.72,13.31,13.3,71.6023]
[1672782673535,76.4,13.309,13.282,20.0]
[1672782673745,12.83,13.3,13.289,117.5058]
[1672782673955,12.83,13.3,13.285,48.3001]
[1672782674197,56.44,13.299,13.285,48.3001]
[1672782674391,105.87743003,13.299,13.285,48.3001]
[1672782674817,56.43,13.301,13.285,165.8059]
[1672782675033,30.0,13.3,13.286,48.3001]
[1672782675241,56.44,13.299,13.274,12.04]
[1672782675558,56.44,13.299,13.278,176.9081]
[1672782675559,48.19008514,13.298,13.278,176.9081]
[1672782675773,56.45,13.297,13.278,176.9081]
[1672782675975,86.45,13.297,13.279,77.3723]
[1672782676387,49.43743003,13.297,13.28,18.411]
[1672782676599,49.43743003,13.297,13.281,30.0]
[1672782676927,49.43743003,13.297,13.282,8.244]
[1672782677345,49.43743003,13.297,13.284,30.0]
[1672782677555,47.3571,13.299,13.285,20.0]
[1672782677866,147.98859669,13.299,13.285,20.0]
[1672782678281,30.0,13.298,13.285,130.71102951]
[1672782678498,56.45,13.297,13.282,24.0424]
[1672782678705,30.0,13.296,13.282,24.0424]
[1672782678918,56.46,13.295,13.282,24.0424]
[1672782679127,30.0,13.294,13.282,24.0424]
[1672782679442,30.0,13.292,13.282,24.0424]
[1672782679868,107.1793282,13.291,13.282,24.0424]
[1672782680059,30.0,13.29,13.282,24.0424]
[1672782680380,56.48,13.289,13.282,24.0424]
[1672782680593,56.48,13.289,13.279,159.4939]
[1672782680594,30.0,13.288,13.279,159.4939]
[1672782680921,145.70230936,13.288,13.271,16.62]
[1672782681234,30.0,13.286,13.27,158.0470797]
[1672782681432,56.5,13.285,13.27,158.0470797]
[1672782681643,30.0,13.284,13.27,158.0470797]
[1672782681958,56.51,13.283,13.27,158.0470797]
[1672782682169,162.46129649,13.283,13.27,158.0470797]
[1672782682381,51.49068902,13.282,13.27,158.0470797]
[1672782682596,12.83,13.28,13.27,42.3981797]
[1672782682796,50.53351292,13.279,13.27,42.3981797]
[1672782683004,50.53351292,13.28,13.27,42.3981797]
[1672782683651,144.88873112,13.28,13.27,42.3981797]
[1672782683962,42.00581073,13.281,13.27,42.3981797]
[1672782684156,50.53351292,13.28,13.27,42.3981797]
[1672782684367,52.34940747,13.281,13.27,42.3981797]
[1672782684573,42.00581073,13.284,13.27,42.3981797]
[1672782684898,117.1737,13.29,13.274,30.0]
[1672782685102,42.00581073,13.287,13.275,20.0]
[1672782685539,42.00581073,13.287,13.275,19.5]
[1672782685747,130.0037,13.29,13.275,19.5]
[1672782686073,30.0,13.288,13.275,19.5]
[1672782686484,81.79787739,13.288,13.275,19.5]
[1672782687117,117.1737,13.29,13.275,19.5]
[1672782687325,117.1737,13.29,13.275,65.6832]
[1672782687553,30.0,13.289,13.275,65.6832]
[1672782687872,30.0,13.287,13.275,65.6832]
[1672782688080,30.0,13.287,13.271,22.8554]
[1672782688270,103.46448507,13.286,13.271,22.8554]
[1672782688481,30.0,13.285,13.271,22.8554]
[1672782688811,30.0,13.283,13.271,22.8554]
[1672782689442,37.5528774,13.283,13.271,22.8554]
[1672782689969,67.5528774,13.283,13.271,22.8554]
[1672782690280,30.0,13.281,13.271,22.8554]
[1672782690812,79.26011308,13.28,13.271,22.8554]
[1672782691009,41.70723568,13.28,13.274,30.0]
[1672782691334,144.7442042,13.286,13.271,22.8554]
[1672782691532,41.70723568,13.282,13.271,22.8554]
[1672782691964,30.0,13.28,13.271,22.8554]
[1672782692284,136.71143988,13.279,13.271,22.8554]
[1672782692494,136.71143988,13.279,13.273,1831.79629376]
[1672782692705,46.57443568,13.278,13.273,1831.79629376]
[1672782693435,85.33981667,13.278,13.273,1831.79629376]
[1672782693648,38.76538099,13.278,13.273,1831.79629376]
[1672782693842,56.51,13.283,13.273,1831.79629376]
[1672782694051,201.86099515,13.284,13.273,1831.79629376]
[1672782694270,48.29656077,13.283,13.271,137.6524]
[1672782694683,91.56119645,13.283,13.271,137.6524]
[1672782694886,48.29656077,13.283,13.271,137.6524]
[1672782695100,30.0,13.284,13.271,137.6524]
[1672782695433,48.8146847,13.283,13.271,137.6524]
[1672782695954,48.8146847,13.28,13.271,137.6524]
[1672782696371,48.8146847,13.278,13.271,137.6524]
[1672782696585,52.64740543,13.276,13.272,1775.26058416]
[1672782696778,193.82713912,13.277,13.272,1775.26058416]
[1672782696993,143.82713912,13.275,13.272,1775.26058416]
[1672782697433,143.82713912,13.274,13.272,1775.26058416]
[1672782697742,96.72689515,13.274,13.272,1775.26058416]
[1672782697957,96.92250344,13.273,13.272,1775.26058416]
[1672782698158,143.82713912,13.273,13.272,1775.26058416]
[1672782698579,94.00487965,13.273,13.272,1775.26058416]
[1672782699020,46.90463568,13.273,13.272,1775.26058416]
[1672782699933,115.5714,13.28,13.272,1775.26058416]
[1672782700143,115.5714,13.28,13.27,42.3981797]
[1672782700354,46.79251042,13.279,13.27,42.3981797]
[1672782702140,120.7825461,13.279,13.27,42.3981797]
[1672782702351,30.0,13.278,13.27,42.3981797]
[1672782702571,71.00260926,13.277,13.27,42.3981797]
[1672782702783,30.0,13.276,13.27,42.3981797]
[1672782702991,51.00260926,13.275,13.27,42.3981797]
[1672782703207,51.00260926,13.273,13.27,42.3981797]
[1672782703409,51.00260926,13.271,13.27,42.3981797]
[1672782703619,79.82225947,13.272,13.27,42.3981797]
[1672782703847,30.0,13.272,13.27,42.3981797]
[1672782704058,93.14492374,13.271,13.27,42.3981797]
[1672782705616,43.32266427,13.271,13.27,42.3981797]
[1672782705827,91.21269995,13.271,13.27,42.3981797]
[1672782706032,91.21269995,13.271,13.27,0.0081797]
[1672782706450,140.53234475,13.271,13.27,0.0081797]
[1672782707309,92.64230907,13.271,13.27,0.0081797]
[1672782708578,43.32266427,13.271,13.27,0.0081797]
[1672782708978,95.83290774,13.271,13.27,0.0081797]
[1672782709187,43.32266427,13.271,13.27,0.0081797]
[1672782709812,43.32266427,13.271,13.261,47.1268]
[1672782709813,30.0,13.27,13.261,46.6349797]
[1672782710024,47.77408467,13.269,13.261,46.6349797]
[1672782710234,30.0,13.268,13.261,46.6349797]
[1672782710556,30.0,13.266,13.261,46.6349797]
[1672782710767,52.53231949,13.265,13.256,24.7912]
[1672782710977,52.53231949,13.265,13.257,20.0]
[1672782711748,52.53231949,13.265,13.258,11.08137784]
[1672782711922,30.0,13.266,13.257,20.0]
[1672782712134,52.53231949,13.265,13.257,20.0]
[1672782714141,52.53231949,13.265,13.257,31.08137784]
[1672782714351,52.53231949,13.269,13.26,12.92]
[1672782714564,30.0,13.271,13.26,12.92]
[1672782715612,48.6691,13.272,13.26,24.00137784]
[1672782715830,56.52,13.281,13.261,3.964]
[1672782716141,30.0,13.281,13.262,41.08137784]
[1672782716352,30.0,13.281,13.263,23.964]
[1672782716567,30.0,13.281,13.263,83.22057784]
[1672782717181,30.0,13.281,13.264,48.1752]
[1672782717515,30.0,13.279,13.264,48.1752]
[1672782717708,30.0,13.277,13.264,48.1752]
[1672782718330,30.0,13.275,13.264,48.1752]
[1672782723279,30.0,13.269,13.251,123.74258749]
[1672782723492,48.1752,13.264,13.251,123.74258749]
[1672782723703,30.0,13.259,13.251,123.74258749]
[1672782723909,56.62,13.258,13.251,123.74258749]
[1672782724115,59.81913919,13.251,13.243,20.0]
[1672782724324,59.81913919,13.251,13.23,42.3981797]